[Event "1000GM NY Winter IM-C 2024"]
[Site "New York"]
[Date "2024.01.14"]
[Round "6.6"]
[White "Pagan, Jonathan"]
[Black "Mede, Istvan"]
[Result "0-1"]
[ECO "E94"]
[WhiteElo "2018"]
[BlackElo "2187"]
[Annotator "TA"]
[PlyCount "94"]
[EventDate "2024.01.10"]
[EventType "swiss"]
[EventCountry "USA"]
[SourceTitle "playchess.com"]
[Source "ChessBase"]
[SourceQuality "1"]
[TimeControl "5400+30"]

{[%evp 25,94,168,153,140,184,194,265,264,271,64,74,40,146,33,62,4,27,0,82,96,111,129,197,198,194,191,187,25,5,12,16,23,37,0,0,0,20,0,0,0,0,-69,-64,-81,-83,-93,0,0,43,-245,-246,-677,-706,-1141,-630,-624,-528,-510,-496,-610,-331,-812,-844,-3257,-2955,-2503,-2463,-29988,-29985,-29982,-1468]} 1. d4 {[%emt 0:00:03]} Nf6 {[%emt 0:15:31]} 2. c4 {[%emt 0:00:07]} g6 {[%emt 0:00:02]} 3. Nc3 {[%emt 0:00:08]} Bg7 {[%emt 0:00:12]} 4. e4 {[%emt 0:00:06]} d6 {[%emt 0:00:02]} 5. Nf3 {[%emt 0:00:05]} O-O {[%emt 0:00:04]} 6. Be2 {[%emt 0:00:05]} Nbd7 {[%emt 0:00:02]} 7. O-O {[%emt 0:00:08]} e5 {[%emt 0:00:04]} 8. Qc2 {[%emt 0:00:04]} c6 {[%emt 0:02:52]} 9. d5 {[%emt 0:00:18]} c5 {[%emt 0:00:55]} 10. Bg5 {[%emt 0:00:05] E94: King's Indian: Classical: 6 Be2 e5 7 0-0: Various Black 7th moves.} h6 {[%emt 0:00:24]} 11. Bd2 {[%emt 0:00:05]} Ne8 {[%emt 0:02:51]} 12. Rae1 {[%emt 0:02:18]} f5 $146 {[%emt 0:01:39]} ({Predecessor:} 12... Ndf6 13. Kh1 a6 14. a3 Rb8 15. b4 b6 16. Rb1 Nh5 17. g3 Bg4 18. Ng1 Bxe2 19. Ngxe2 {1-0 Lever,E (2174)-Ventura Bolet,A (2245) Mediterranean-ch 13th 2023 (9)}) 13. exf5 {[%emt 0:00:12]} gxf5 {[%emt 0:00:05]} 14. Kh1 {[%emt 0:00:10]} Ndf6 {[%emt 0:03:57]} 15. g3 {[%emt 0:03:15]} Nh7 {[%emt 0:07:15]} (15... Ne4 {might work better.} 16. Nxe4 fxe4) 16. Nh4 $18 {[%emt 0:09:10]} Bd7 {[%emt 0:06:47]} 17. f4 $2 {[%emt 0:01:53]} (17. f3 $18) 17... e4 $14 {[%emt 0:06:15]} 18. Ng2 {[%emt 0:00:38]} a6 {[%emt 0:06:13]} (18... Bd4 $14) 19. Rg1 {[%emt 0:01:52]} ({White should try} 19. g4 $1 $16) 19... b5 {[%emt 0:01:35]} 20. b3 {[%emt 0:00:20]} (20. cxb5 $14 axb5 21. Bxb5) 20... b4 {[%emt 0:00:45]} (20... Bd4 {keeps more tension.} 21. cxb5 Bxg1 22. Rxg1 axb5 23. Nxb5 Nhf6) 21. Nd1 {[%emt 0:01:41]} Nef6 {[%emt 0:04:58]} (21... Bd4 $11) 22. Nde3 $16 {[%emt 0:24:42]} h5 {[%emt 0:12:42]} 23. h3 {[%emt 0:00:33]} a5 {[%emt 0:01:18]} (23... Ne8 $16) 24. Nh4 $18 {[%emt 0:00:25]} Qc8 {[%emt 0:00:09]} 25. Qd1 {[%emt 0:00:34]} a4 {[%emt 0:00:35]} 26. Bxh5 $2 {[%emt 0:07:21]} ({Better is} 26. Rg2 $18) 26... axb3 {[%emt 0:00:15]} 27. axb3 {[%emt 0:00:04]} Nxh5 $1 {[%emt 0:01:46]} 28. Qxh5 {[%emt 0:00:06]} Rf6 $1 {[%emt 0:04:09]} 29. Qd1 {[%emt 0:08:17]} (29. Qe2 $5 Rh6 $8 30. Bc1 $15) 29... Rh6 {[%emt 0:00:16]} 30. Re2 {[%emt 0:07:19]} Bf6 {[%emt 0:01:24]} 31. Be1 {[%emt 0:00:25]} Ra1 {[%emt 0:01:43]} 32. Qc2 {[%emt 0:00:22]} Nf8 {[%emt 0:01:47]} 33. Rd2 {[%emt 0:08:08]} (33. Bf2 $11) 33... Kf7 $15 {[%emt 0:01:20]} 34. Rd1 {[%emt 0:01:51]} Ra3 {[%emt 0:00:16]} 35. Kh2 {[%emt 0:03:33]} Bxh4 {[%emt 0:03:38]} (35... Ng6 $17 {[%cal Rg6h4]} 36. Nhg2 Qh8) 36. gxh4 $14 {[%emt 0:00:04]} Ng6 {[%emt 0:00:01]} 37. Qg2 $2 {[%emt 0:03:55][%mdl 8192]} (37. Rg5 $1 $14) 37... Qh8 $1 $19 {[%emt 0:00:11]} 38. Rd2 $2 {[%emt 0:14:10]} (38. Qg5 Ne7 39. Qg3 Rxb3 (39... Rg6 $2 40. Qf2 $19) 40. Rg2) 38... Rxb3 $19 {[%emt 0:01:41]} 39. h5 {[%emt 0:00:39]} Rxe3 {[%emt 0:06:51]} 40. hxg6+ {[%emt 0:00:50]} Kg7 {[%emt 0:00:17]} 41. Bg3 {[%emt 0:00:24]} Rxg6 {[%emt 0:00:13]} (41... Kxg6 $2 42. Bf2+ Kf7 43. Bxe3 $18) 42. Qf2 {[%emt 0:00:04]} Rc3 {[%emt 0:02:04]} 43. Ra2 $2 {[%emt 0:00:18]} (43. Bh4 Qh6 (43... Rxc4 $2 44. Rxg6+ Kf7 45. Rf6+ Ke8 46. Qg3 $18) 44. Ra2) 43... b3 $19 {[%emt 0:00:21]} (43... Rxc4 44. Bh4 Rxg1 45. Qxg1+ Kh7 46. Qg5 $14) (43... e3 44. Qe2 Kf8 45. Be1 Rxg1 46. Ra8+ Be8 47. Bxc3 Qxc3 48. Kxg1 $17) 44. Qb2 {[%emt 0:00:55]} Kf7 {[%emt 0:01:01]} 45. Ra8 {[%emt 0:00:28]} Qd4 {[%emt 0:02:55]} (45... Qxa8 46. Qxc3 Ba4 47. Ra1 $17) 46. Bf2 {[%emt 0:01:19]} e3 {[%emt 0:00:55]} (46... Qxc4 47. Rxg6 e3 (47... Kxg6 $2 48. Qa1 $18) 48. Rg7+ (48. Rxd6 $2 Ke7 $19) 48... Kxg7 49. Be1 Qxf4+ 50. Kg1 $18) 47. Rxg6 {[%emt 0:00:11]} Kxg6 {[%emt 0:00:12]} (47... exf2 $142 48. Qxc3 Qxc3 49. Rg1 fxg1=Q+ (49... fxg1=B+ {gets mated.} 50. Kxg1 Qg3+ 51. Kh1) 50. Kxg1 b2 (50... Qxh3 $2 51. Rb8 $19) (50... Qxc4 51. Ra7 Ke7 52. h4 Qxd5 53. Ra6 Bc6 54. Rxc6 Qxc6 55. Kf2 b2 56. h5 b1=Q 57. h6 Qc2+ 58. Kg3 Q6g2+ 59. Kh4 Qg4#) 51. Rb8 Qxc4 (51... Qxh3 52. Rxb2 Qe3+ 53. Kg2 $19) (51... Qc2 {leads to mate.} 52. Rb7 b1=R+ 53. Rxb1 Qxb1+ 54. Kf2 Qc2+ 55. Kg3 Ba4 56. h4 Qe2 57. h5 Bd1 58. h6 Qf3+ 59. Kh2 Qf2+ 60. Kh3 Bg4#) 52. Rb7 Qc1+ (52... Qxd5 {is a self mate.} 53. Rb8 Bc6 54. Rxb2 Qd4+ 55. Kf1 Qxb2 56. Ke1 Bf3 57. Kf1 Qg2+ 58. Ke1 Qe2#) (52... Qd4+ 53. Kh2 Qxf4+ 54. Kg2 Qe4+ 55. Kg1 b1=Q+ 56. Rxb1 Qxb1+ 57. Kh2 f4 58. Kg2 Qe1 59. h4) 53. Kg2 b1=Q (53... b1=B 54. Rxd7+ Ke8 55. Rg7 Qb2+ 56. Kg3 Qxg7+ 57. Kf3 Qb2 58. Ke3 Be4 59. h4 Bxd5 60. Kd3 Be4+ 61. Ke3 d5 62. h5 d4#) 54. Rxb1 Qxb1 55. Kf2 Bb5 56. h4 Qf1+ 57. Kg3 Be2 58. h5 Qf3+ (58... Bxh5 59. Kh4 Qf3 60. Kg5 Qg4+ 61. Kh6 Qg6#) (58... Qg1+ $2 59. Kh3 Bf1+ 60. Kh4 Qg4#) 59. Kh2 Qf2+ 60. Kh3 Bg4#) 0-1

[Event "1000GM NY Winter IM-C 2024"]
[Site "New York"]
[Date "2024.01.14"]
[Round "6.7"]
[White "Bonin, Jay"]
[Black "Gaw, Chloe"]
[Result "1-0"]
[ECO "D26"]
[WhiteElo "2166"]
[BlackElo "1928"]
[Annotator "RC"]
[PlyCount "121"]
[EventDate "2024.01.10"]
[EventType "swiss"]
[EventCountry "USA"]
[SourceTitle "playchess.com"]
[Source "ChessBase"]
[SourceQuality "1"]
[TimeControl "5400+30"]

1. d4 {[%emt 0:01:36]} d5 {[%emt 0:00:07]} 2. Nf3 {[%emt 0:00:05]} Nf6 {[%emt 0:00:04]} 3. c4 {[%emt 0:00:06]} dxc4 {[%emt 0:00:05]} 4. e3 {[%emt 0:00:06]} e6 {[%emt 0:00:05]} 5. Bxc4 {[%emt 0:00:05]} c5 {[%emt 0:00:03]} 6. dxc5 {[%emt 0:00:06]} Bxc5 {[%emt 0:00:06]} 7. Qxd8+ {[%emt 0:00:08]} Kxd8 {[%emt 0:00:04]} 8. Ke2 {[%emt 0:00:16]} Ke7 {[%emt 0:00:56]} 9. Nbd2 {[%emt 0:00:16]} Nbd7 {[%emt 0:02:27]} 10. a3 {[%emt 0:00:20]} b6 {[%emt 0:02:12]} 11. b4 {[%emt 0:01:30]} Bd6 {[%emt 0:00:06]} 12. Bb2 {[%emt 0:00:06]} Bb7 {[%emt 0:01:26]} 13. Rhc1 {[%emt 0:03:45]} Rac8 {[%emt 0:02:09]} 14. Bd3 {[%emt 0:00:58]} Bb8 {[%emt 0:08:45]} 15. g3 {[%emt 0:02:36]} Rhd8 {[%emt 0:03:41]} 16. Nc4 {[%emt 0:01:59]} g6 {[%emt 0:06:08]} 17. Nce5 {[%emt 0:02:26]} Nxe5 {[%emt 0:03:36]} 18. Nxe5 {[%emt 0:00:07]} Bxe5 {[%emt 0:11:12]} 19. Bxe5 {[%emt 0:00:13]} Ng4 {[%emt 0:00:23]} 20. Rc7+ {[%emt 0:02:55]} Rxc7 {[%emt 0:01:19]} 21. Bxc7 {[%emt 0:00:07]} Rc8 {[%emt 0:04:09]} 22. Rc1 {[%emt 0:02:38]} Ne5 {[%emt 0:13:58]} 23. e4 {[%emt 0:09:26]} g5 {[%emt 0:07:55]} 24. Rc3 {[%emt 0:06:13]} Nc6 {[%emt 0:03:59]} 25. b5 {[%emt 0:00:17]} Rxc7 {[%emt 0:00:48]} 26. bxc6 {[%emt 0:00:04]} Rxc6 {[%emt 0:00:09]} 27. Rxc6 {[%emt 0:00:06]} Bxc6 {[%emt 0:00:03]} 28. e5 {[%emt 0:00:05]} h6 {[%emt 0:00:45]} 29. f4 {[%emt 0:01:59]} gxf4 {[%emt 0:03:28]} 30. gxf4 {[%emt 0:00:11]} Bb7 {[%emt 0:10:17]} 31. Ke3 {[%emt 0:00:41]} a6 {[%emt 0:04:49]} 32. Kd4 {[%emt 0:02:13]} Kd7 {[%emt 0:00:39]} 33. Be2 {[%emt 0:00:39]} Kc6 {[%emt 0:00:44]} 34. Bf3+ {[%emt 0:00:41]} Kc7 {[%emt 0:00:03]} 35. Bh5 {[%emt 0:00:08]} Kd7 {[%emt 0:00:31]} 36. Bxf7 {[%emt 0:00:07]} Ke7 {[%emt 0:00:15]} 37. Bg6 {[%emt 0:00:30]} Bc8 {[%emt 0:00:54]} 38. Be4 {[%emt 0:00:29]} Bd7 {[%emt 0:00:49]} 39. Bd3 {[%emt 0:02:56]} Bc8 {[%emt 0:00:11]} 40. Bc4 {[%emt 0:03:49]} Kd7 {[%emt 0:01:31]} 41. Bd3 {[%emt 0:11:25]} Ke7 {[%emt 0:00:19]} 42. h4 {[%emt 0:03:32]} Kf7 {[%emt 0:01:16]} 43. Be4 {[%emt 0:01:25]} Bd7 {[%emt 0:00:37]} 44. Bb7 {[%emt 0:04:30]} Kg6 {[%emt 0:07:34]} 45. Bxa6 {[%emt 0:05:52]} Kf5 {[%emt 0:00:02]} 46. Ke3 {[%emt 0:00:38]} Kg4 {[%emt 0:00:02]} 47. Bc4 {[%emt 0:00:50]} h5 {[%emt 0:02:08]} 48. Bb3 {[%emt 0:12:54]} Bc8 {[%emt 0:00:19]} 49. Bd1+ {[%emt 0:01:46]} Kg3 {[%emt 0:00:22]} 50. Bxh5 {[%emt 0:01:46]} Kxh4 {[%emt 0:00:05]} 51. Bd1 {[%emt 0:03:32]} Kg3 {[%emt 0:00:07]} 52. Be2 {[%emt 0:01:25]} Bd7 {[%emt 0:00:19]} 53. Bc4 {[%emt 0:01:20]} Kg4 {[%emt 0:00:12]} 54. a4 {[%emt 0:03:58]} Bc8 {[%emt 0:00:30]} 55. Bb5 {[%emt 0:01:09]} Kg3 {[%emt 0:01:05]} 56. Bc6 {[%emt 0:01:19]} Kg4 {[%emt 0:00:40]} 57. Ke4 {[%emt 0:00:19]} Kh5 {[%emt 0:01:46]} 58. f5 {[%emt 0:00:27]} exf5+ {[%emt 0:00:01]} 59. Kd5 {[%emt 0:00:06]} f4 {[%emt 0:01:05]} 60. e6 {[%emt 0:00:21]} f3 {[%emt 0:00:26]} 61. e7 {[%emt 0:00:11]} 1-0

[Event "1000GM NY Winter IM-C 2024"]
[Site "New York"]
[Date "2024.01.14"]
[Round "6.8"]
[White "Yudasin, Leonid"]
[Black "Mou, Iris"]
[Result "1-0"]
[ECO "B13"]
[WhiteElo "2353"]
[BlackElo "2128"]
[Annotator "RC"]
[PlyCount "121"]
[EventDate "2024.01.10"]
[EventType "swiss"]
[EventCountry "USA"]
[SourceTitle "playchess.com"]
[Source "ChessBase"]
[SourceQuality "1"]
[TimeControl "5400+30"]

1. e4 {[%emt 0:00:06]} c6 {[%emt 1:31:00]} 2. d4 {[%emt 0:00:18]} d5 {[%emt 0:00:00]} 3. exd5 {[%emt 0:00:16]} cxd5 {[%emt 0:00:00]} 4. Bd3 {[%emt 0:00:03]} Nf6 {[%emt 0:00:00]} 5. c3 {[%emt 0:00:05]} Bg4 {[%emt 0:00:00]} 6. Qb3 {[%emt 0:01:00]} Qc7 {[%emt 0:00:00]} 7. Ne2 {[%emt 0:00:19]} Bxe2 {[%emt 0:00:00]} 8. Bxe2 {[%emt 0:00:54]} Nbd7 {[%emt 0:00:00]} 9. Bg5 {[%emt 0:07:37]} e6 {[%emt 0:04:00]} 10. Nd2 {[%emt 0:00:53]} Bd6 {[%emt 0:00:00]} 11. Bh4 {[%emt 0:01:18]} O-O {[%emt 0:00:00]} 12. Bg3 {[%emt 0:02:47]} Rab8 {[%emt 0:00:00]} 13. a4 {[%emt 0:03:37]} a6 {[%emt 0:00:00]} 14. O-O {[%emt 0:03:46]} Ne8 {[%emt 0:00:00]} 15. a5 {[%emt 0:05:05]} Bxg3 {[%emt 0:00:00]} 16. hxg3 {[%emt 0:00:07]} Nd6 {[%emt 0:00:00]} 17. Qc2 {[%emt 0:05:29]} Rbc8 {[%emt 0:00:00]} 18. Bd3 {[%emt 0:03:46]} f5 {[%emt 0:00:00]} 19. Rfc1 {[%emt 0:06:48]} Ne4 {[%emt 0:00:00]} 20. c4 {[%emt 0:00:50]} Qd6 {[%emt 0:00:00]} 21. Nf3 {[%emt 0:02:08]} Kh8 {[%emt 0:00:00]} 22. Qb3 {[%emt 0:01:52]} Rb8 {[%emt 0:00:00]} 23. Qa3 {[%emt 0:04:58]} Qxa3 {[%emt 0:00:00]} 24. Rxa3 {[%emt 0:00:09]} Rbc8 {[%emt 0:00:00]} 25. Raa1 {[%emt 0:01:06]} Ndf6 {[%emt 0:00:00]} 26. Ne5 {[%emt 0:01:06]} Nd2 {[%emt 0:00:35]} 27. Rc3 {[%emt 0:05:48]} Nfe4 {[%emt 0:02:01]} 28. Bxe4 {[%emt 0:00:31]} Nxe4 {[%emt 0:00:14]} 29. Rb3 {[%emt 0:00:17]} dxc4 {[%emt 0:04:16]} 30. Rxb7 {[%emt 0:00:18]} Rb8 {[%emt 0:01:35]} 31. Rb6 {[%emt 0:03:45]} Rfc8 {[%emt 0:01:33]} 32. Nxc4 {[%emt 0:00:46]} Ra8 {[%emt 0:00:17]} 33. b3 {[%emt 0:00:44]} Rd8 {[%emt 0:00:43]} 34. Rd1 {[%emt 0:01:50]} Nc3 {[%emt 0:00:12]} 35. Re1 {[%emt 0:00:04]} Rxd4 {[%emt 0:00:56]} 36. Rbxe6 {[%emt 0:01:32]} Ne4 {[%emt 0:00:12]} 37. g4 {[%emt 0:01:23]} g6 {[%emt 0:00:37]} 38. gxf5 {[%emt 0:00:29]} gxf5 {[%emt 0:00:05]} 39. Ne3 {[%emt 0:04:19]} Nd6 {[%emt 0:00:29]} 40. Rd1 {[%emt 0:00:35]} Nb5 {[%emt 0:00:48]} 41. Rxd4 {[%emt 0:00:19]} Nxd4 {[%emt 0:00:04]} 42. Rb6 {[%emt 0:00:13]} f4 {[%emt 0:01:00]} 43. Nd5 {[%emt 0:00:48]} f3 {[%emt 0:00:15]} 44. gxf3 {[%emt 0:00:59]} Nxf3+ {[%emt 0:00:49]} 45. Kg2 {[%emt 0:00:40]} Nd4 {[%emt 0:00:21]} 46. Nc7 {[%emt 0:01:14]} Ra7 {[%emt 0:00:46]} 47. Ne6 {[%emt 0:01:13]} Nxe6 {[%emt 0:00:36]} 48. Rxe6 {[%emt 0:00:02]} Kg7 {[%emt 0:00:13]} 49. Rb6 {[%emt 0:00:18]} Kf7 {[%emt 0:00:22]} 50. Kg3 {[%emt 0:00:08]} Kg7 {[%emt 0:00:13]} 51. Kg4 {[%emt 0:00:22]} Kf7 {[%emt 0:00:47]} 52. b4 {[%emt 0:00:01]} Kg7 {[%emt 0:00:08]} 53. f4 {[%emt 0:00:21]} Kf7 {[%emt 0:00:34]} 54. Kg5 {[%emt 0:00:58]} Kg7 {[%emt 0:00:19]} 55. f5 {[%emt 0:00:16]} Kf7 {[%emt 0:00:18]} 56. f6 {[%emt 0:00:16]} Ra8 {[%emt 0:00:34]} 57. Rb7+ {[%emt 0:01:30]} Kg8 {[%emt 0:01:22]} 58. Kh6 {[%emt 0:00:51]} Rd8 {[%emt 0:00:33]} 59. Rg7+ {[%emt 0:00:14]} Kf8 {[%emt 0:00:23]} 60. Rxh7 {[%emt 0:00:06]} Rd4 {[%emt 0:00:44]} 61. Rb7 {[%emt 0:00:06]} 1-0

[Event "1000GM NY Winter IM-C 2024"]
[Site "New York"]
[Date "2024.01.14"]
[Round "6.9"]
[White "Hajnal, Zoltan"]
[Black "Venkatesh, Narayan"]
[Result "1/2-1/2"]
[ECO "C07"]
[WhiteElo "2383"]
[BlackElo "1965"]
[Annotator "RC"]
[PlyCount "83"]
[EventDate "2024.01.10"]
[EventType "swiss"]
[EventCountry "USA"]
[SourceTitle "playchess.com"]
[Source "ChessBase"]
[SourceQuality "1"]
[TimeControl "5400+30"]

1. e4 {[%emt 0:01:53]} e6 {[%emt 0:02:43]} 2. d4 {[%emt 0:00:05]} d5 {[%emt 0:00:04]} 3. Nd2 {[%emt 0:00:08]} c5 {[%emt 0:00:07]} 4. exd5 {[%emt 0:00:04]} Qxd5 {[%emt 0:00:07]} 5. dxc5 {[%emt 0:00:05]} Nf6 {[%emt 0:00:05]} 6. Ngf3 {[%emt 0:00:12]} Qxc5 {[%emt 0:00:10]} 7. Bd3 {[%emt 0:01:55]} Nbd7 {[%emt 0:00:14]} 8. Qe2 {[%emt 0:00:29]} Be7 {[%emt 0:00:30]} 9. Nb3 {[%emt 0:04:02]} Qc7 {[%emt 0:00:13]} 10. Bg5 {[%emt 0:00:28]} O-O {[%emt 0:06:14]} 11. O-O-O {[%emt 0:02:29]} b6 {[%emt 0:04:09]} 12. Kb1 {[%emt 0:05:22]} Bb7 {[%emt 0:06:35]} 13. h4 {[%emt 0:00:47]} Rac8 {[%emt 0:10:00]} 14. Bxf6 {[%emt 0:31:15]} Nxf6 {[%emt 0:01:00]} 15. Nbd4 {[%emt 0:00:18]} Bc5 {[%emt 0:22:15]} 16. c3 {[%emt 0:02:46]} Rfd8 {[%emt 0:04:11]} 17. Rhe1 {[%emt 0:05:07]} h6 {[%emt 0:12:49]} 18. g3 {[%emt 0:07:42]} a5 {[%emt 0:03:50]} 19. Nb5 {[%emt 0:05:08]} Qe7 {[%emt 0:01:07]} 20. a4 {[%emt 0:00:26]} Bd5 {[%emt 0:04:11]} 21. Ne5 {[%emt 0:02:01]} Bb3 {[%emt 0:04:02]} 22. Bc2 {[%emt 0:00:09]} Bxc2+ {[%emt 0:00:06]} 23. Kxc2 {[%emt 0:01:04]} Nd5 {[%emt 0:01:42]} 24. Qf3 {[%emt 0:01:48]} Qf6 {[%emt 0:03:56]} 25. Qxf6 {[%emt 0:03:25]} gxf6 {[%emt 0:01:02]} 26. Nd3 {[%emt 0:00:22]} Bf8 {[%emt 0:00:32]} 27. Kb3 {[%emt 0:01:14]} f5 {[%emt 0:03:23]} 28. Ne5 {[%emt 0:04:31]} Bc5 {[%emt 0:01:20]} 29. Nd3 {[%emt 0:03:03]} Bf8 {[%emt 0:00:39]} 30. Ne5 {[%emt 0:02:36]} Bc5 {[%emt 0:00:46]} 31. Nd3 {[%emt 0:05:18]} Bf8 {[%emt 0:00:23]} 32. f3 {[%emt 0:03:20]} Nf6 {[%emt 0:01:39]} 33. Ne5 {[%emt 0:00:31]} Bc5 {[%emt 0:01:00]} 34. Na7 {[%emt 0:00:55]} Rxd1 {[%emt 0:00:44]} 35. Rxd1 {[%emt 0:00:03]} Ra8 {[%emt 0:00:13]} 36. Nac6 {[%emt 0:00:21]} Bf2 {[%emt 0:01:05]} 37. Nd8 {[%emt 0:02:26]} Bxg3 {[%emt 0:00:50]} 38. Ndxf7 {[%emt 0:01:42]} Kf8 {[%emt 0:05:34]} 39. Rg1 {[%emt 0:00:31]} Bf4 {[%emt 0:00:30]} 40. Rg6 {[%emt 0:04:29]} Ke7 {[%emt 0:00:30]} 41. Rg7 Kf8 {[%emt 0:00:30]} 42. Rg1 {[%emt 0:01:00]} 1/2-1/2

[Event "1000GM NY Winter IM-C 2024"]
[Site "New York"]
[Date "2024.01.15"]
[Round "7.1"]
[White "Goktepe, Derin"]
[Black "Martin Del Campo Cardenas, Roberto Abel"]
[Result "1/2-1/2"]
[ECO "E60"]
[WhiteElo "2187"]
[BlackElo "2205"]
[Annotator "RC"]
[PlyCount "53"]
[EventDate "2024.01.10"]
[EventType "swiss"]
[EventCountry "USA"]
[SourceTitle "playchess.com"]
[Source "ChessBase"]
[SourceQuality "1"]
[TimeControl "5400+30"]

1. d4 {[%emt 0:01:15]} d6 {[%emt 0:00:51]} 2. Nf3 {[%emt 0:00:22]} Nf6 {[%emt 0:00:14]} 3. c4 {[%emt 0:00:20]} g6 {[%emt 0:00:13]} 4. g3 {[%emt 0:00:22]} Bg7 {[%emt 0:00:08]} 5. Bg2 {[%emt 0:00:16]} O-O {[%emt 0:01:13]} 6. O-O {[%emt 0:00:30]} Nc6 {[%emt 0:02:26]} 7. d5 {[%emt 0:00:36]} Na5 {[%emt 0:00:28]} 8. Nfd2 {[%emt 0:00:50]} c5 {[%emt 0:00:07]} 9. a3 {[%emt 0:02:12]} Ne8 {[%emt 0:07:21]} 10. Ra2 {[%emt 0:04:43]} Qc7 {[%emt 0:02:59]} 11. Qc2 {[%emt 0:07:40]} b5 {[%emt 0:00:49]} 12. b3 {[%emt 0:12:01]} bxc4 {[%emt 0:08:56]} 13. Nxc4 {[%emt 0:07:07]} Rb8 {[%emt 0:04:58]} 14. Nbd2 {[%emt 0:07:53]} Ba6 {[%emt 0:11:27]} 15. Bb2 {[%emt 0:03:30]} Nxc4 {[%emt 0:08:35]} 16. Nxc4 {[%emt 0:05:20]} Bxc4 {[%emt 0:04:03]} 17. bxc4 {[%emt 0:08:22]} Qb6 {[%emt 0:10:30]} 18. Bxg7 {[%emt 0:02:37]} Nxg7 {[%emt 0:00:28]} 19. Raa1 {[%emt 0:05:42]} Qa6 {[%emt 0:03:02]} 20. Be4 {[%emt 0:02:36]} Rb6 {[%emt 0:02:21]} 21. Bd3 {[%emt 0:00:59]} Nh5 {[%emt 0:01:31]} 22. Rfb1 {[%emt 0:01:45]} Rfb8 {[%emt 0:00:24]} 23. Qc3 {[%emt 0:05:06]} Nf6 {[%emt 0:01:00]} 24. Rxb6 {[%emt 0:00:30]} Rxb6 {[%emt 0:00:19]} 25. Rb1 {[%emt 0:01:08]} Rxb1+ {[%emt 0:01:09]} 26. Bxb1 {[%emt 0:00:05]} Nd7 {[%emt 0:00:09]} 27. Bd3 {[%emt 0:01:23]} 1/2-1/2

[Event "1000GM NY Winter IM-C 2024"]
[Site "New York"]
[Date "2024.01.15"]
[Round "7.2"]
[White "Yoo, Eugene"]
[Black "Rohde, Michael"]
[Result "1/2-1/2"]
[ECO "A34"]
[WhiteElo "2168"]
[BlackElo "2333"]
[Annotator "RC"]
[PlyCount "46"]
[EventDate "2024.01.10"]
[EventType "swiss"]
[EventCountry "USA"]
[SourceTitle "playchess.com"]
[Source "ChessBase"]
[SourceQuality "1"]
[TimeControl "5400+30"]

1. c4 {[%emt 0:00:09]} c5 {[%emt 0:13:28]} 2. Nf3 {[%emt 0:00:13]} Nf6 {[%emt 0:00:37]} 3. Nc3 {[%emt 0:00:13]} Nc6 {[%emt 0:00:38]} 4. e3 {[%emt 0:00:18]} e5 {[%emt 0:01:03]} 5. d4 {[%emt 0:01:28]} cxd4 {[%emt 0:02:26]} 6. exd4 {[%emt 0:00:08]} e4 {[%emt 0:00:24]} 7. Ng5 {[%emt 0:10:24]} Bb4 {[%emt 0:01:06]} 8. d5 {[%emt 0:10:01]} Ne5 {[%emt 0:05:43]} 9. Qd4 {[%emt 0:03:14]} d6 {[%emt 0:02:02]} 10. Ngxe4 {[%emt 0:07:00]} Nxe4 {[%emt 0:01:50]} 11. Qxe4 {[%emt 0:00:40]} O-O {[%emt 0:00:23]} 12. Be2 {[%emt 0:06:57]} f5 {[%emt 0:11:03]} 13. Qc2 {[%emt 0:11:08]} f4 {[%emt 0:00:40]} 14. Qb3 {[%emt 0:01:34]} Qe8 {[%emt 0:06:39]} 15. f3 {[%emt 0:04:45]} Nd3+ {[%emt 0:03:47]} 16. Kf1 {[%emt 0:04:36]} Bf5 {[%emt 0:01:29]} 17. Ne4 {[%emt 0:11:08]} Bxe4 {[%emt 0:04:29]} 18. fxe4 {[%emt 0:00:28]} Nxc1 {[%emt 0:01:23]} 19. Rxc1 {[%emt 0:00:09]} Qxe4 {[%emt 0:04:38]} 20. Bf3 {[%emt 0:09:06]} Qe3 {[%emt 0:00:17]} 21. Qxe3 {[%emt 0:00:11]} fxe3 {[%emt 0:00:04]} 22. Ke2 {[%emt 0:00:44]} Bd2 {[%emt 0:00:12]} 23. Rc2 {[%emt 0:03:02]} Rac8 {[%emt 0:03:31]} 1/2-1/2

[Event "1000GM NY Winter IM-C 2024"]
[Site "New York"]
[Date "2024.01.15"]
[Round "7.3"]
[White "Almeida Saenz, Alfonso"]
[Black "Chabris, Christopher"]
[Result "1-0"]
[ECO "D03"]
[WhiteElo "2222"]
[BlackElo "2078"]
[Annotator "RC"]
[PlyCount "75"]
[EventDate "2024.01.10"]
[EventType "swiss"]
[EventCountry "USA"]
[SourceTitle "playchess.com"]
[Source "ChessBase"]
[SourceQuality "1"]
[TimeControl "5400+30"]

1. d4 {[%emt 0:00:30]} Nf6 {[%emt 0:00:33]} 2. Bg5 {[%emt 0:00:00]} e6 {[%emt 0:00:12]} 3. Nd2 {[%emt 0:00:06]} h6 {[%emt 0:00:22]} 4. Bh4 {[%emt 0:00:07]} d5 {[%emt 0:05:12]} 5. e3 {[%emt 0:00:22]} c5 {[%emt 0:00:57]} 6. c3 {[%emt 0:00:15]} Be7 {[%emt 0:02:46]} 7. Bd3 {[%emt 0:00:09]} Nc6 {[%emt 0:05:17]} 8. Ngf3 {[%emt 0:00:30]} O-O {[%emt 0:06:44]} 9. O-O {[%emt 0:00:08]} b6 {[%emt 0:01:14]} 10. Rc1 {[%emt 0:00:12]} Bb7 {[%emt 0:06:57]} 11. Re1 {[%emt 0:00:11]} Nd7 {[%emt 0:05:01]} 12. Bg3 {[%emt 0:00:13]} c4 {[%emt 0:04:47]} 13. Bb1 {[%emt 0:00:51]} f5 {[%emt 0:00:35]} 14. Qe2 {[%emt 0:00:39]} Nf6 {[%emt 0:03:36]} 15. Ne5 {[%emt 0:00:33]} Bd6 {[%emt 0:02:02]} 16. Ndf3 {[%emt 0:04:55]} Bxe5 {[%emt 0:10:48]} 17. Nxe5 {[%emt 0:00:16]} Nd7 {[%emt 0:05:37]} 18. Ng6 {[%emt 0:00:43]} Rf7 {[%emt 0:03:09]} 19. Bh4 {[%emt 0:00:07]} Qe8 {[%emt 0:06:47]} 20. f3 {[%emt 0:00:44]} Nf8 {[%emt 0:04:43]} 21. Nxf8 {[%emt 0:00:10]} Qxf8 {[%emt 0:01:51]} 22. e4 {[%emt 0:00:06]} g5 {[%emt 0:01:02]} 23. Bg3 {[%emt 0:00:52]} f4 {[%emt 0:00:26]} 24. exd5 {[%emt 0:01:24]} exd5 {[%emt 0:01:51]} 25. Bf2 {[%emt 0:00:11]} Re7 {[%emt 0:00:59]} 26. Qc2 {[%emt 0:00:10]} Rae8 {[%emt 0:03:35]} 27. Qg6+ {[%emt 0:00:30]} Kh8 {[%emt 0:02:00]} 28. Re6 {[%emt 0:02:14]} Nd8 {[%emt 0:06:33]} 29. Qxh6+ {[%emt 0:00:41]} Qxh6 {[%emt 0:00:29]} 30. Rxh6+ {[%emt 0:00:02]} Kg8 {[%emt 0:00:46]} 31. Rg6+ {[%emt 0:00:30]} Kf8 {[%emt 0:01:41]} 32. Rxg5 {[%emt 0:05:03]} Re2 {[%emt 0:00:30]} 33. Bg6 {[%emt 0:02:30]} R8e6 {[%emt 0:00:55]} 34. Bf5 {[%emt 0:01:08]} Rf6 {[%emt 0:00:54]} 35. Rc2 {[%emt 0:00:30]} Re7 {[%emt 0:01:38]} 36. Rh5 {[%emt 0:00:12]} Ref7 {[%emt 0:00:58]} 37. Bg4 {[%emt 0:00:17]} Ne6 {[%emt 0:01:06]} 38. Re2 {[%emt 0:00:13]} 1-0